fUSD/lending_fUSD_20251123
["ID","MTS","AMOUNT","RATE_DAILY","PERIOD"]
[394676313,1763859041733,-500.0,0.00016998,2]
[394676314,1763859041742,-468.53422449,0.00016998,2]
[394676315,1763859041752,-500.0,0.00016998,2]
[394676316,1763859041761,-544.65,0.00016998,2]
[394676317,1763859041771,-803.63,0.00016998,2]
[394676318,1763859041781,-623.31538564,0.00016998,2]
[394676319,1763859041790,-485.0,0.00016998,2]
[394676320,1763859041800,-418.55431668,0.00016998,2]
[394676321,1763859041809,-671.62,0.00016998,2]
[394676322,1763859041820,-730.41,0.00016998,2]
[394676323,1763859041829,-656.14,0.00016998,2]
[394676324,1763859041839,-500.0,0.00016998,2]
[394676325,1763859041848,-500.0,0.00016998,2]
[394676326,1763859041857,-166.39183317,0.00016998,2]
[394676327,1763859041866,-500.0,0.00016998,2]
[394676328,1763859041876,-500.0,0.00016998,2]
[394676329,1763859041885,-500.0,0.00016998,2]
[394676330,1763859041894,-500.0,0.00016998,2]
[394676331,1763859041904,-500.0,0.00016998,2]
[394676332,1763859041913,-411.41724952,0.00016998,2]
[394676333,1763859041922,-500.0,0.00016998,2]
[394676334,1763859041931,-500.0,0.00016998,2]
[394676335,1763859041941,-500.0,0.00016998,2]
[394676336,1763859041950,-500.0,0.00016998,2]
[394676337,1763859041959,-500.0,0.00016998,2]
[394676338,1763859041968,-500.0,0.00016998,2]
[394676339,1763859041977,-500.0,0.00016998,2]
[394676340,1763859041986,-500.0,0.00016998,2]
[394676341,1763859041995,-500.0,0.00016998,2]
[394676342,1763859042005,-500.0,0.00016998,2]
[394676343,1763859042014,-500.0,0.00016998,2]
[394676344,1763859042023,-500.0,0.00016998,2]
[394676345,1763859042032,-500.0,0.00016998,2]
[394676346,1763859042041,-500.0,0.00016998,2]
[394676347,1763859042051,-500.0,0.00016998,2]
[394676348,1763859042060,-423.42308414,0.00016998,2]
[394676349,1763859042070,-500.0,0.00016998,2]
[394676350,1763859042080,-531.28243621,0.00016998,2]
[394676351,1763859042091,-500.0,0.00016998,2]
[394676352,1763859042100,-500.0,0.00016998,2]
[394676353,1763859042109,-500.0,0.00016998,2]
[394676354,1763859042118,-816.21,0.00016998,2]
[394676355,1763859042129,-500.0,0.00016998,2]
[394676356,1763859042138,-500.0,0.00016998,2]
[394676357,1763859042147,-500.0,0.00016998,2]
[394676358,1763859042157,-500.0,0.00016998,2]
[394676359,1763859042168,-500.0,0.00016998,2]
[394676360,1763859042177,-500.0,0.00016998,2]
[394676361,1763859042186,-500.0,0.00016998,2]
[394676362,1763859042195,-500.0,0.00016998,2]
[394676363,1763859042205,-500.0,0.00016998,2]
[394676364,1763859042214,-504.47499065,0.00016998,2]
[394676365,1763859042223,-508.45766171,0.00016998,2]
[394676366,1763859042233,-500.0,0.00016998,2]
[394676367,1763859042242,-500.0,0.00016998,2]
[394676368,1763859042251,-188.48849308,0.00016998,2]
[394676369,1763859042260,-971.55,0.00016998,2]
[394676370,1763859042269,-500.0,0.00016998,2]
[394676371,1763859042278,-409.32200833,0.00016998,2]
[394676372,1763859042287,-407.18979103,0.00016998,2]
[394676373,1763859042297,-1609.79,0.00016998,2]
[394676374,1763859042306,-659.03,0.00016998,2]
[394676375,1763859042316,-544.54093957,0.00016998,2]
[394676376,1763859042325,-525.35,0.00016998,2]
[394676377,1763859042334,-539.0,0.00016998,2]
[394676378,1763859042343,-500.0,0.00016998,2]
[394676379,1763859042352,-675.48,0.00016998,2]
[394676380,1763859042477,-639.88,0.00016998,2]
[394676381,1763859042487,-516.09,0.00016998,2]
[394676382,1763859042496,-675.44,0.00016998,2]
[394676383,1763859042505,-500.0,0.00016998,2]
[394676384,1763859042514,-726.87,0.00016998,2]
[394676385,1763859042524,-500.0,0.00016998,2]
[394676386,1763859042533,-535.56,0.00016998,2]
[394676387,1763859042542,-182.13043215,0.00016998,2]
[394676388,1763859042551,-500.0,0.00016998,2]
[394676389,1763859042560,-500.0,0.00016998,2]
[394676390,1763859042570,-500.0,0.00016998,2]
[394676391,1763859042579,-500.0,0.00016998,2]
[394676392,1763859042588,-500.0,0.00016998,2]
[394676393,1763859042597,-510.01979354,0.00016998,2]
[394676394,1763859042607,-227.91603678,0.00016998,2]
[394676395,1763859042616,-500.0,0.00016998,2]
[394676396,1763859042625,-500.0,0.00016998,2]
[394676397,1763859042635,-500.0,0.00016998,2]
[394676398,1763859042644,-500.0,0.00016998,2]
[394676399,1763859042653,-500.0,0.00016998,2]
[394676400,1763859042663,-500.0,0.00016999,2]
[394676401,1763859042672,-500.0,0.00016999,2]
[394676402,1763859042682,-500.0,0.00016999,2]
[394676403,1763859042691,-500.0,0.00016999,2]
[394676404,1763859042701,-500.0,0.00016999,2]
[394676405,1763859042710,-500.0,0.00016999,2]
[394676406,1763859042720,-500.0,0.00016999,2]
[394676407,1763859042729,-500.0,0.00016999,2]
[394676408,1763859042738,-500.0,0.00016999,2]
[394676409,1763859042747,-500.0,0.00016999,2]
[394676410,1763859042757,-576.32,0.00016999,2]
[394676411,1763859042766,-603.51,0.00016999,2]
[394676412,1763859042776,-500.0,0.00016999,2]
[394676413,1763859042785,-500.0,0.00016999,2]
[394676414,1763859042795,-500.0,0.00016999,2]
[394676415,1763859042805,-500.0,0.00016999,2]
[394676416,1763859042815,-500.0,0.00016999,2]
[394676417,1763859042825,-500.0,0.00016999,2]
[394676418,1763859042834,-500.0,0.00016999,2]
[394676419,1763859042844,-645.82,0.00016999,2]
[394676420,1763859042853,-715.93,0.00016999,2]
[394676421,1763859042862,-500.0,0.00016999,2]
[394676422,1763859042872,-500.0,0.00016999,2]
[394676423,1763859042881,-500.0,0.00016999,2]
[394676424,1763859042895,-500.0,0.00016999,2]
[394676425,1763859042904,-626.46984879,0.00016999,2]
[394676426,1763859042914,-500.0,0.00016999,2]
[394676427,1763859042923,-500.0,0.00016999,2]
[394676428,1763859042933,-500.0,0.00016999,2]
[394676429,1763859042943,-500.0,0.00016999,2]
[394676430,1763859042953,-910.87,0.00016999,2]
[394676431,1763859042963,-500.0,0.00016999,2]
[394676432,1763859042975,-479.01249771,0.00016999,2]
[394676433,1763859042985,-647.45,0.00016999,2]
[394676434,1763859042994,-1049.87,0.00016999,2]
[394676435,1763859043004,-500.0,0.00016999,2]
[394676436,1763859043015,-500.0,0.00016999,2]
[394676437,1763859043024,-500.0,0.00016999,2]
[394676438,1763859043034,-500.0,0.00016999,2]
[394676439,1763859043043,-500.0,0.00016999,2]
[394676440,1763859043054,-500.0,0.00016999,2]
[394676441,1763859043064,-500.0,0.00016999,2]
[394676442,1763859043073,-500.0,0.00016999,2]
[394676443,1763859043083,-415.2862096,0.00016999,2]
[394676444,1763859043096,-500.0,0.00016999,2]
[394676445,1763859043105,-500.0,0.00016999,2]
[394676446,1763859043116,-500.0,0.00016999,2]
[394676447,1763859043127,-500.0,0.00016999,2]
[394676448,1763859043137,-500.0,0.00016999,2]
[394676449,1763859043146,-914.28,0.00016999,2]
[394676450,1763859043155,-500.0,0.00016999,2]
[394676451,1763859043166,-521.7809429,0.00016999,2]
[394676452,1763859043176,-565.35937465,0.00016999,2]
[394676453,1763859043186,-500.0,0.00016999,2]
[394676454,1763859043195,-523.73624861,0.00016999,2]
[394676455,1763859043205,-500.0,0.00016999,2]
[394676456,1763859043221,-500.0,0.00016999,2]
[394676457,1763859043243,-500.0,0.00016999,2]
[394676458,1763859043261,-543.74,0.00016999,2]
[394676462,1763859043282,-500.0,0.00016999,2]
[394676464,1763859043298,-543.19,0.00016999,2]
[394676466,1763859043315,-500.0,0.00016999,2]
[394676469,1763859043334,-500.0,0.00016999,2]
[394676470,1763859043353,-500.0,0.00016999,2]
[394676471,1763859043372,-687.62,0.00016999,2]
[394676472,1763859043389,-500.0,0.00016999,2]
[394676473,1763859043408,-500.0,0.00016999,2]
[394676474,1763859043426,-500.0,0.00016999,2]
[394676475,1763859043441,-500.0,0.00016999,2]
[394676476,1763859043461,-500.0,0.00016999,2]
[394676477,1763859043473,-500.0,0.00016999,2]
[394676478,1763859043490,-1585.15,0.00016999,2]
[394676479,1763859043503,-768.99,0.00016999,2]
[394676480,1763859043517,-500.0,0.00016999,2]
[394676481,1763859043532,-160.65737046,0.00016999,2]
[394676482,1763859043548,-500.0,0.00016999,2]
[394676483,1763859043565,-500.0,0.00016999,2]
[394676484,1763859043583,-500.0,0.00016999,2]
[394676485,1763859043600,-500.0,0.00016999,2]
[394676486,1763859043620,-500.0,0.00016999,2]
[394676487,1763859043637,-500.0,0.00016999,2]
[394676488,1763859043653,-500.0,0.00016999,2]
[394676489,1763859043668,-500.0,0.00016999,2]
[394676490,1763859043683,-1030.53,0.00016999,2]
[394676491,1763859043698,-500.0,0.00016999,2]
[394676492,1763859043714,-500.0,0.00016999,2]
[394676493,1763859043733,-651.08,0.00016999,2]
[394676494,1763859043749,-500.0,0.00016999,2]
[394676495,1763859043766,-500.0,0.00016999,2]
[394676496,1763859043781,-606.05,0.00016999,2]
[394676497,1763859043797,-613.83,0.00016999,2]
[394676498,1763859043815,-656.86,0.00016999,2]
[394676499,1763859043830,-500.0,0.00016999,2]
[394676500,1763859043846,-500.0,0.00016999,2]
[394676501,1763859043861,-500.0,0.00016999,2]
[394676502,1763859043876,-984.09,0.00016999,2]
[394676503,1763859043893,-500.0,0.00016999,2]
[394676504,1763859043907,-500.0,0.00016999,2]
[394676505,1763859043923,-500.0,0.00016999,2]
[394676506,1763859043938,-500.0,0.00016999,2]
[394676507,1763859043954,-500.0,0.00016999,2]
[394676508,1763859043970,-500.0,0.00016999,2]
[394676509,1763859043986,-500.0,0.00016999,2]
[394676510,1763859044001,-500.0,0.00016999,2]
[394676511,1763859044017,-500.0,0.00016999,2]
[394676512,1763859044032,-1055.65,0.00016999,2]
[394676513,1763859044047,-500.0,0.00016999,2]
[394676514,1763859044062,-500.0,0.00016999,2]
[394676515,1763859044079,-500.0,0.00016999,2]
[394676516,1763859044096,-500.0,0.00016999,2]
[394676517,1763859044111,-500.0,0.00016999,2]
[394676518,1763859044128,-500.0,0.00016999,2]
[394676519,1763859044144,-500.0,0.00016999,2]
[394676520,1763859044159,-500.0,0.00016999,2]
[394676521,1763859044175,-500.0,0.00016999,2]
[394676522,1763859044190,-500.0,0.00016999,2]
[394676523,1763859044205,-500.0,0.00016999,2]
[394676524,1763859044220,-333.92574308,0.00016999,2]
[394676525,1763859044236,-517.22,0.00016999,2]
[394676526,1763859044251,-500.0,0.00016999,2]
[394676527,1763859044267,-500.0,0.00016999,2]
[394676528,1763859044282,-512.06520469,0.00016999,2]
[394676529,1763859044301,-764.07,0.00016999,2]
[394676530,1763859044317,-500.0,0.00016999,2]
[394676531,1763859044333,-500.0,0.00016999,2]
[394676532,1763859044350,-500.0,0.00016999,2]
[394676533,1763859044363,-537.82,0.00016999,2]
[394676534,1763859044372,-643.22,0.00016999,2]
[394676535,1763859044383,-185.78990485,0.00016999,2]
[394676536,1763859044393,-151.0,0.00016999,2]
[394676537,1763859044404,-500.0,0.00016999,2]
[394676538,1763859044413,-500.0,0.00016999,2]
[394676539,1763859044423,-500.0,0.00016999,2]
[394676540,1763859044637,-522.12011615,0.00016999,2]
[394676541,1763859044658,-500.0,0.00016999,2]
[394676542,1763859044685,-500.0,0.00016999,2]
[394676543,1763859044699,-615.85132972,0.00016999,2]
[394676544,1763859044708,-573.98,0.00016999,2]
[394676545,1763859044718,-739.16,0.00016999,2]
[394676546,1763859044728,-500.0,0.00016999,2]
[394676547,1763859044738,-868.62,0.00016999,2]
[394676548,1763859044747,-500.0,0.00016999,2]
[394676549,1763859044756,-638.38580928,0.00016999,2]
[394676550,1763859044765,-622.32,0.00016999,2]
[394676551,1763859044774,-500.0,0.00016999,2]
[394676552,1763859044784,-500.0,0.00016999,2]
[394676553,1763859044794,-500.0,0.00016999,2]
[394676554,1763859044803,-500.0,0.00016999,2]
[394676555,1763859044812,-709.34,0.00016999,2]
[394676556,1763859044823,-500.0,0.00016999,2]
[394676557,1763859044832,-777.6,0.00016999,2]
[394676558,1763859044842,-500.0,0.00016999,2]
[394676559,1763859044851,-500.0,0.00016999,2]
[394676560,1763859044861,-151.0,0.00016999,2]
[394676561,1763859044871,-500.0,0.00016999,2]
[394676562,1763859044880,-500.0,0.00016999,2]
[394676563,1763859044890,-500.0,0.00016999,2]
[394676564,1763859044900,-500.0,0.00016999,2]
[394676565,1763859044909,-500.0,0.00016999,2]
[394676566,1763859044919,-500.0,0.00016999,2]
[394676567,1763859044928,-500.0,0.00016999,2]
[394676569,1763859044937,-500.0,0.00016999,2]
[394676570,1763859044946,-500.0,0.00016999,2]
[394676571,1763859044955,-500.0,0.00016999,2]
[394676572,1763859044965,-539.72140738,0.00016999,2]
[394676573,1763859044974,-500.0,0.00016999,2]
[394676574,1763859044983,-500.0,0.00016999,2]
[394676575,1763859044993,-508.18457303,0.00016999,2]
[394676576,1763859045007,-500.0,0.00016999,2]
[394676577,1763859045016,-593.61,0.00016999,2]
[394676578,1763859045025,-500.0,0.00016999,2]
[394676579,1763859045035,-547.62,0.00016999,2]
[394676580,1763859045044,-608.83,0.00016999,2]
[394676581,1763859045053,-738.96,0.00016999,2]
[394676582,1763859045062,-500.0,0.00016999,2]
[394676583,1763859045071,-500.0,0.00016999,2]
[394676584,1763859045080,-500.0,0.00016999,2]
[394676585,1763859045092,-500.0,0.00016999,2]
[394676586,1763859045102,-785.12,0.00016999,2]
[394676587,1763859045111,-500.0,0.00016999,2]
[394676588,1763859045120,-573.89,0.00016999,2]
[394676589,1763859045130,-500.0,0.00016999,2]
[394676590,1763859045139,-608.55249744,0.00016999,2]
[394676591,1763859045149,-500.0,0.00016999,2]
[394676592,1763859045158,-500.0,0.00016999,2]
[394676593,1763859045169,-633.7859562,0.00016999,2]
[394676594,1763859045179,-151.0,0.00016999,2]
[394676595,1763859045188,-500.0,0.00016999,2]
[394676596,1763859045197,-478.18410856,0.00016999,2]
[394676597,1763859045207,-151.0,0.00016999,2]
[394676598,1763859045216,-500.0,0.00016999,2]
[394676599,1763859045225,-500.0,0.00016999,2]
[394676600,1763859045235,-151.0,0.00016999,2]
[394676601,1763859045244,-518.79,0.00016999,2]
[394676602,1763859045255,-500.0,0.00016999,2]
[394676603,1763859045265,-151.0,0.00016999,2]
[394676604,1763859045275,-500.0,0.00016999,2]
[394676605,1763859045285,-604.47979039,0.00016999,2]
[394676606,1763859045294,-500.0,0.00016999,2]
[394676607,1763859045303,-500.0,0.00016999,2]
[394676608,1763859045312,-500.0,0.00016999,2]
[394676609,1763859045321,-535.90375237,0.00016999,2]
[394676610,1763859045330,-500.0,0.00016999,2]
[394676611,1763859045340,-500.0,0.00016999,2]
[394676612,1763859045349,-500.0,0.00016999,2]
[394676613,1763859045358,-500.0,0.00016999,2]
[394676614,1763859045367,-1073.31,0.00016999,2]
[394676615,1763859045377,-500.0,0.00016999,2]
[394676616,1763859045386,-500.0,0.00016999,2]
[394676617,1763859045395,-500.0,0.00016999,2]
[394676618,1763859045404,-500.0,0.00016999,2]
[394676619,1763859045413,-641.9854373,0.00016999,2]
[394676620,1763859045423,-500.0,0.00016999,2]
[394676621,1763859045432,-500.0,0.00016999,2]
[394676622,1763859045441,-500.0,0.00016999,2]
[394676623,1763859045451,-598.43,0.00016999,2]
[394676624,1763859045460,-500.0,0.00016999,2]
[394676625,1763859045469,-840.08,0.00016999,2]
[394676626,1763859045478,-500.0,0.00016999,2]
[394676627,1763859045488,-500.0,0.00016999,2]
[394676628,1763859045497,-668.9,0.00016999,2]
[394676629,1763859045507,-500.0,0.00016999,2]
[394676630,1763859045516,-559.48,0.00016999,2]
[394676631,1763859045525,-151.899162,0.00016999,2]
[394676632,1763859045535,-151.0,0.00016999,2]
[394676633,1763859045544,-224.353992,0.00016999,2]
[394676634,1763859045553,-500.0,0.00016999,2]
[394676635,1763859045562,-151.0,0.00016999,2]
[394676636,1763859045572,-151.0,0.00016999,2]
[394676637,1763859045581,-734.36,0.00016999,2]
[394676638,1763859045591,-500.0,0.00016999,2]
[394676639,1763859045600,-511.56,0.00016999,2]
[394676640,1763859045610,-151.0,0.00016999,2]
[394676641,1763859045619,-500.0,0.00016999,2]
[394676642,1763859045629,-500.0,0.00016999,2]
[394676643,1763859045638,-248.46254652,0.00016999,2]
[394676644,1763859045649,-743.47,0.00016999,2]
[394676646,1763859045658,-500.0,0.00016999,2]
[394676647,1763859045667,-538.19,0.00016999,2]
[394676648,1763859045677,-500.0,0.00016999,2]
[394676649,1763859045686,-500.0,0.00016999,2]
[394676650,1763859045695,-738.04,0.00016999,2]
[394676651,1763859045704,-500.0,0.00016999,2]
[394676652,1763859045715,-636.2,0.00016999,2]
[394676653,1763859045726,-151.0,0.00016999,2]
[394676654,1763859045740,-151.0,0.00016999,2]
[394676655,1763859045750,-500.0,0.00016999,2]
[394676656,1763859045760,-500.0,0.00016999,2]
[394676657,1763859045770,-151.0,0.00016999,2]
[394676658,1763859045779,-151.0,0.00016999,2]
[394676659,1763859045789,-151.0,0.00016999,2]
[394676660,1763859045800,-151.0,0.00016999,2]
[394676661,1763859045809,-500.0,0.00016999,2]
[394676662,1763859045819,-500.0,0.00016999,2]
[394676663,1763859045829,-151.0,0.00016999,2]
[394676664,1763859045838,-500.0,0.00016999,2]
[394676665,1763859045848,-151.0,0.00016999,2]
[394676666,1763859045859,-646.23,0.00016999,2]
[394676667,1763859045869,-151.342601,0.00016999,2]
[394676668,1763859045879,-151.0,0.00016999,2]
[394676669,1763859045889,-573.37242657,0.00016999,2]
[394676670,1763859045898,-151.0,0.00016999,2]
[394676671,1763859045908,-151.0,0.00016999,2]
[394676672,1763859045918,-156.965589,0.00016999,2]
[394676673,1763859045927,-151.0,0.00016999,2]
[394676674,1763859045937,-500.0,0.00016999,2]
[394676675,1763859045947,-500.0,0.00016999,2]
[394676676,1763859045956,-151.0,0.00016999,2]
[394676677,1763859045966,-151.0,0.00016999,2]
[394676678,1763859045975,-878.11,0.00016999,2]
[394676679,1763859045985,-2605.7,0.00016999,2]
[394676680,1763859045996,-815.56,0.00016999,2]
[394676681,1763859046006,-568.95,0.00016999,2]
[394676682,1763859046015,-500.0,0.00016999,2]
[394676683,1763859046024,-151.0,0.00016999,2]
[394676684,1763859046034,-151.0,0.00016999,2]
[394676685,1763859046043,-151.0,0.00016999,2]
[394676686,1763859046053,-151.0,0.00016999,2]
[394676687,1763859046062,-151.0,0.00016999,2]
[394676688,1763859046072,-151.0,0.00016999,2]
[394676689,1763859046082,-151.0,0.00016999,2]
[394676690,1763859046097,-151.0,0.00016999,2]
[394676691,1763859046107,-500.0,0.00016999,2]
[394676692,1763859046118,-151.0,0.00016999,2]
[394676693,1763859046129,-151.0,0.00016999,2]
[394676694,1763859046139,-151.0,0.00016999,2]
[394676695,1763859046148,-151.0,0.00016999,2]
[394676696,1763859046158,-151.0,0.00016999,2]
[394676697,1763859046170,-151.0,0.00016999,2]
[394676698,1763859046180,-500.0,0.00016999,2]
[394676699,1763859046190,-151.0,0.00016999,2]
[394676700,1763859046199,-168.003332,0.00016999,2]
[394676701,1763859046209,-654.55,0.00016999,2]
[394676702,1763859046218,-500.0,0.00016999,2]
[394676703,1763859046227,-599.72,0.00016999,2]
[394676704,1763859046236,-500.0,0.00016999,2]
[394676705,1763859046245,-500.0,0.00016999,2]
[394676706,1763859046255,-1502.35,0.00016999,2]
[394676707,1763859046264,-1041.51,0.00016999,2]
[394676708,1763859046274,-500.0,0.00016999,2]
[394676709,1763859046283,-1019.56,0.00016999,2]
[394676710,1763859046292,-824.19,0.00016999,2]
[394676711,1763859046302,-500.0,0.00016999,2]
[394676712,1763859046311,-500.0,0.00016999,2]
[394676713,1763859046320,-151.0,0.00016999,2]
[394676714,1763859046329,-246.802968,0.00016999,2]
[394676715,1763859046339,-500.0,0.00016999,2]
[394676716,1763859046348,-556.78,0.00016999,2]
[394676717,1763859046357,-151.0,0.00016999,2]
[394676718,1763859046366,-151.0,0.00016999,2]
[394676719,1763859046375,-767.16,0.00016999,2]
[394676720,1763859046384,-390.01509824,0.00016999,2]
[394676721,1763859046393,-585.72,0.00016999,2]
[394676722,1763859046402,-500.0,0.00016999,2]
[394676723,1763859046412,-1309.89,0.00016999,2]
[394676724,1763859046421,-151.0,0.00016999,2]
[394676725,1763859046430,-151.0,0.00016999,2]
[394676726,1763859046440,-801.95,0.00016999,2]
[394676727,1763859046449,-151.0,0.00016999,2]
[394676728,1763859046457,-500.0,0.00016999,2]
[394676729,1763859046467,-151.0,0.00016999,2]
[394676730,1763859046476,-151.0,0.00016999,2]
[394676731,1763859046485,-151.0,0.00016999,2]
[394676732,1763859046494,-151.0,0.00016999,2]
[394676733,1763859046503,-151.0,0.00016999,2]
[394676734,1763859046512,-151.0,0.00016999,2]
[394676735,1763859046521,-208.151249,0.00016999,2]
[394676736,1763859046530,-500.0,0.00016999,2]
[394676737,1763859046539,-151.0,0.00016999,2]
[394676738,1763859046549,-500.0,0.00016999,2]
[394676739,1763859046558,-151.0,0.00016999,2]
[394676740,1763859046567,-151.0,0.00016999,2]
[394676741,1763859046576,-500.0,0.00016999,2]
[394676742,1763859046585,-151.0,0.00016999,2]
[394676743,1763859046594,-151.0,0.00016999,2]
[394676744,1763859046603,-151.0,0.00016999,2]
[394676745,1763859046613,-151.681309,0.00016999,2]
[394676746,1763859046622,-162.746586,0.00016999,2]
[394676747,1763859046631,-152.735227,0.00016999,2]
[394676748,1763859046640,-151.0,0.00016999,2]
[394676749,1763859046649,-207.924161,0.00016999,2]
[394676750,1763859046658,-500.0,0.00016999,2]
[394676751,1763859046667,-500.0,0.00016999,2]
[394676752,1763859046676,-500.0,0.00016999,2]
[394676753,1763859046686,-151.0,0.00016999,2]
[394676754,1763859046695,-2185.15,0.00016999,2]
[394676755,1763859046704,-500.0,0.00016999,2]
[394676756,1763859046713,-164.195911,0.00016999,2]
[394676757,1763859046723,-325.124804,0.00016999,2]
[394676758,1763859046732,-151.0,0.00016999,2]
[394676759,1763859046741,-151.0,0.00016999,2]
[394676760,1763859046750,-500.0,0.00016999,2]
[394676761,1763859046760,-500.0,0.00016999,2]
[394676762,1763859046769,-169.292396,0.00016999,2]
[394676763,1763859046779,-863.03,0.00016999,2]
[394676764,1763859046788,-500.0,0.00016999,2]
[394676765,1763859046797,-500.0,0.00016999,2]
[394676766,1763859046807,-600.22,0.00016999,2]
[394676767,1763859046817,-500.0,0.00016999,2]
[394676768,1763859046826,-625.62,0.00016999,2]
[394676769,1763859046835,-151.0,0.00016999,2]
[394676770,1763859046844,-151.0,0.00016999,2]
[394676771,1763859046854,-500.0,0.00016999,2]
[394676772,1763859046863,-151.0,0.00016999,2]
[394676773,1763859046871,-151.0,0.00016999,2]
[394676774,1763859046881,-500.0,0.00016999,2]
[394676775,1763859046890,-500.0,0.00016999,2]
[394676776,1763859046899,-151.0,0.00016999,2]
[394676777,1763859046907,-151.0,0.00016999,2]
[394676778,1763859046917,-168.807977,0.00016999,2]
[394676779,1763859046926,-500.0,0.00016999,2]
[394676780,1763859046935,-151.0,0.00016999,2]
[394676781,1763859046944,-500.0,0.00016999,2]
[394676782,1763859046954,-151.0,0.00016999,2]
[394676783,1763859046963,-151.0,0.00016999,2]
[394676784,1763859046972,-151.0,0.00016999,2]
[394676785,1763859046982,-555.42,0.00016999,2]
[394676786,1763859046991,-151.0,0.00016999,2]
[394676787,1763859047001,-151.000008,0.00016999,2]
[394676788,1763859047010,-151.0,0.00016999,2]
[394676789,1763859047019,-500.0,0.00016999,2]
[394676790,1763859047028,-151.0,0.00016999,2]
[394676791,1763859047038,-2164.02,0.00016999,2]
[394676792,1763859047047,-151.0,0.00016999,2]
[394676793,1763859047186,-193.592552,0.00016999,2]
[394676794,1763859047196,-500.0,0.00016999,2]
[394676795,1763859047205,-500.0,0.00016999,2]
[394676796,1763859047215,-500.0,0.00016999,2]
[394676797,1763859047224,-604.4,0.00016999,2]
[394676798,1763859047234,-151.0,0.00016999,2]
[394676799,1763859047243,-203.442963,0.00016999,2]
[394676800,1763859047253,-375.169401,0.00016999,2]
[394676801,1763859047262,-500.0,0.00016999,2]
[394676802,1763859047271,-375.169401,0.00016999,2]
[394676803,1763859047280,-151.0,0.00016999,2]
[394676804,1763859047289,-151.0,0.00016999,2]
[394676805,1763859047298,-375.169401,0.00016999,2]
[394676806,1763859047308,-375.169401,0.00016999,2]
[394676807,1763859047318,-151.0,0.00016999,2]
[394676808,1763859047327,-163.687383,0.00016999,2]
[394676809,1763859047336,-576.7,0.00016999,2]
[394676810,1763859047345,-375.169401,0.00016999,2]
[394676811,1763859047354,-375.169401,0.00016999,2]
[394676812,1763859047363,-375.169401,0.00016999,2]
[394676813,1763859047372,-830.12,0.00016999,2]
[394676814,1763859047381,-375.169401,0.00016999,2]
[394676815,1763859047392,-987.68,0.00016999,2]
[394676816,1763859047402,-500.0,0.00016999,2]
[394676817,1763859047411,-1780.25,0.00016999,2]
[394676818,1763859047421,-154.171229,0.00016999,2]
[394676819,1763859047431,-151.0,0.00016999,2]
[394676820,1763859047441,-151.0,0.00016999,2]
[394676821,1763859047451,-1375.55,0.00016999,2]